fUSD/lending_fUSD_20241219
["ID","MTS","AMOUNT","RATE_DAILY","PERIOD"]
[346012547,1734624637402,-1.7095309,0.00023771,2]
[346012548,1734624637411,-724.83,0.00023771,4]
[346012550,1734624637420,-500.0,0.00023771,4]
[346012552,1734624637429,-500.0,0.00023771,4]
[346012555,1734624637439,-287.0604691,0.00023771,4]
[346012600,1734624637882,-212.9395309,0.00023771,4]
[346012602,1734624637892,-500.0,0.00023771,4]
[346012604,1734624637903,-500.0,0.00023771,4]
[346012606,1734624637912,-500.0,0.00023771,4]
[346012608,1734624637921,-500.0,0.00023771,2]
[346012610,1734624637931,-500.0,0.00023771,4]
[346012612,1734624637941,-546.41895076,0.00023771,4]
[346012614,1734624637951,-500.0,0.00023771,4]
[346012616,1734624637961,-500.0,0.00023771,4]
[346012618,1734624637970,-500.0,0.00023771,4]
[346012620,1734624637980,-500.0,0.00023771,4]
[346012622,1734624637990,-500.0,0.00023771,4]
[346012624,1734624637999,-550.09,0.00023771,4]
[346012626,1734624638008,-500.0,0.00023771,4]
[346012628,1734624638018,-502.27398762,0.00023771,4]
[346012630,1734624638028,-500.0,0.00023771,4]
[346012632,1734624638038,-500.0,0.00023771,4]
[346012634,1734624638047,-500.0,0.00023771,4]
[346012636,1734624638057,-592.71,0.00023771,4]
[346012638,1734624638067,-500.0,0.00023771,4]
[346012640,1734624638076,-559.69,0.00023771,4]
[346012642,1734624638086,-500.0,0.00023771,4]
[346012644,1734624638094,-500.0,0.00023771,4]
[346012646,1734624638104,-648.27740433,0.00023771,4]
[346012648,1734624638113,-500.0,0.00023771,4]
[346012650,1734624638121,-500.0,0.00023771,4]
[346012652,1734624638131,-616.81,0.00023771,4]
[346012654,1734624638140,-500.0,0.00023771,4]
[346012656,1734624638152,-500.0,0.00023771,4]
[346012658,1734624638161,-500.0,0.00023771,4]
[346012660,1734624638171,-500.0,0.00023771,4]
[346012662,1734624638180,-500.0,0.00023771,4]
[346012664,1734624638190,-500.0,0.00023771,4]
[346012665,1734624638201,-500.0,0.00023771,4]
[346012667,1734624638210,-764.58,0.00023771,4]
[346012669,1734624638219,-319.8741825,0.00023771,4]
[346012671,1734624638229,-500.0,0.00023771,4]
[346012673,1734624638238,-641.02,0.00023771,4]
[346012675,1734624638247,-500.0,0.00023771,4]
[346012677,1734624638256,-167.16120868,0.00023771,4]
[346012786,1734624639406,-335.73495055,0.00023771,4]
[346012788,1734624639415,-500.0,0.00023771,4]
[346012790,1734624639425,-500.0,0.00023771,4]
[346012792,1734624639435,-500.0,0.00023771,4]
[346012794,1734624639444,-500.0,0.00023771,4]
[346012796,1734624639452,-500.0,0.00023771,4]
[346012798,1734624639461,-522.43653461,0.00023771,4]
[346012800,1734624639471,-500.0,0.00023771,4]
[346012802,1734624639482,-500.0,0.00023771,4]
[346012804,1734624639491,-500.0,0.00023771,4]
[346012806,1734624639500,-500.0,0.00023771,4]
[346012808,1734624639510,-500.0,0.00023772,4]
[346012810,1734624639519,-1438.77,0.00023772,4]
[346012812,1734624639528,-500.0,0.00023772,4]
[346012814,1734624639538,-500.0,0.00023772,4]
[346012816,1734624639547,-39.4636148,0.00023772,4]
[346012818,1734624639558,-460.5363852,0.00023772,4]
[346012820,1734624639567,-500.0,0.00023772,4]
[346012822,1734624639576,-24.54357037,0.00023772,4]
[346012824,1734624639587,-475.45642963,0.00023772,4]
[346012826,1734624639596,-500.0,0.00023772,4]
[346012828,1734624639605,-476.4270705,0.00023772,4]
[346012830,1734624639616,-23.5729295,0.00023772,4]
[346012832,1734624639625,-500.0,0.00023772,4]
[346012834,1734624639634,-500.0,0.00023772,4]
[346012836,1734624639643,-500.0,0.00023772,4]
[346012838,1734624639657,-500.0,0.00023772,4]
[346012840,1734624639666,-500.0,0.00023772,4]
[346012842,1734624639676,-500.0,0.00023772,4]
[346012844,1734624639686,-500.0,0.00023772,4]
[346012846,1734624639696,-500.0,0.00023772,4]
[346012848,1734624639705,-500.0,0.00023772,4]
[346012850,1734624639715,-500.0,0.00023772,4]
[346012852,1734624639724,-500.0,0.00023772,4]
[346012854,1734624639734,-500.0,0.00023772,4]
[346012856,1734624639743,-390.2580837,0.00023772,4]
[346012858,1734624639755,-109.7419163,0.00023772,4]
[346012860,1734624639764,-500.0,0.00023772,4]
[346012862,1734624639775,-500.0,0.00023772,4]
[346012864,1734624639784,-69.5830837,0.00023772,4]
[346012866,1734624639796,-430.4169163,0.00023772,4]
[346012868,1734624639805,-72.8280989,0.00023772,4]
[346012870,1734624639816,-427.1719011,0.00023772,4]
[346012872,1734624639825,-114.85309889,0.00023772,4]
[346012879,1734624639874,-311.77213188,0.00023771,4]
[346013137,1734624642458,-262.22138723,0.00023771,4]
[346013139,1734624642468,-385.14690111,0.00023772,4]
[346013141,1734624642477,-500.0,0.00023772,4]
[346013143,1734624642487,-500.0,0.00023772,4]
[346013145,1734624642497,-500.0,0.00023772,4]
[346013147,1734624642506,-335.42811923,0.00023772,4]
[346013149,1734624642516,-500.0,0.00023772,4]
[346013151,1734624642525,-500.0,0.00023772,4]
[346013153,1734624642534,-500.0,0.00023772,4]
[346013155,1734624642544,-500.0,0.00023772,4]
[346013157,1734624642553,-500.0,0.00023772,4]
[346013159,1734624642562,-500.0,0.00023772,4]
[346013161,1734624642571,-500.0,0.00023772,4]
[346013163,1734624642581,-500.0,0.00023772,4]
[346013165,1734624642591,-500.0,0.00023772,4]
[346013167,1734624642601,-500.0,0.00023772,4]
[346013169,1734624642611,-500.0,0.00023772,4]
[346013171,1734624642620,-500.0,0.00023772,4]
[346013173,1734624642629,-500.0,0.00023772,4]
[346013175,1734624642638,-500.0,0.00023772,4]
[346013177,1734624642648,-500.0,0.00023772,4]
[346013179,1734624642659,-500.0,0.00023772,4]
[346013181,1734624642669,-1210.11,0.00023772,4]
[346013183,1734624642679,-1708.37,0.00023772,4]
[346013185,1734624642689,-795.4,0.00023772,4]
[346013187,1734624642699,-1500.0,0.000238,2]
[346013205,1734624642864,-7442.88630788,0.00023808,2]
[346013207,1734624642874,-181.6347993,0.00023808,2]
[346013209,1734624642884,-500.0,0.00023832,4]
[346013211,1734624642894,-916.64,0.00023832,4]
[346013213,1734624642904,-500.0,0.00023832,4]
[346013215,1734624642914,-500.0,0.00023832,4]
[346013218,1734624642923,-500.0,0.00023832,4]
[346013221,1734624642933,-500.0,0.00023832,4]
[346013224,1734624642943,-500.0,0.00023832,4]
[346013226,1734624642952,-500.0,0.00023832,4]
[346013228,1734624642962,-500.0,0.00023832,4]
[346013230,1734624642972,-7669.91376416,0.0002384,5]
[346013232,1734624642982,-7669.91376416,0.00023849,5]
[346013234,1734624642992,-7669.91376416,0.00023859,5]
[346013236,1734624643001,-7669.91376416,0.00023865,5]
[346013238,1734624643011,-7669.91376416,0.00023881,5]
[346013240,1734624643022,-188.13,0.00023889,2]
[346013242,1734624643031,-150.0,0.00023894,120]
[346013244,1734624643041,-7669.91376416,0.00023898,5]
[346013246,1734624643050,-207.96,0.00023942,2]
[346013248,1734624643060,-721.58990029,0.00023944,2]
[346013251,1734624643072,-5000.0,0.00023944,2]
[346013253,1734624643087,-1721.29640759,0.00023944,2]
[346013255,1734624643096,-150.0,0.0002395,120]
[346013257,1734624643106,-312.40359211,0.00024044,4]
[346013472,1734624645396,-500.0,0.00023771,4]
[346013475,1734624645408,-187.59640789,0.00024044,4]
[346013477,1734624645417,-500.0,0.00024044,4]
[346013479,1734624645427,-500.0,0.00024044,4]
[346013481,1734624645437,-500.0,0.00024044,4]
[346013483,1734624645446,-652.51,0.00024044,4]
[346013485,1734624645455,-500.0,0.00024044,4]
[346013487,1734624645465,-500.0,0.00024044,4]
[346013489,1734624645474,-500.0,0.00024044,4]
[346013491,1734624645483,-500.0,0.00024044,4]
[346013493,1734624645493,-265.01628897,0.00024044,4]
[346013495,1734624645502,-500.0,0.00024044,4]
[346013497,1734624645511,-500.0,0.00024044,4]
[346013499,1734624645520,-500.0,0.00024044,4]
[346013501,1734624645529,-500.0,0.00024044,4]
[346013503,1734624645538,-500.0,0.00024044,4]
[346013505,1734624645548,-500.0,0.00024044,4]
[346013507,1734624645559,-500.0,0.00024044,4]
[346013509,1734624645569,-500.0,0.00024044,4]
[346013511,1734624645578,-500.0,0.00024044,4]
[346013513,1734624645588,-302.0,0.00024044,4]
[346013515,1734624645598,-612.11,0.00024044,4]
[346013517,1734624645607,-500.0,0.00024044,4]
[346013519,1734624645616,-281.0,0.00024044,4]
[346013521,1734624645626,-500.0,0.00024044,4]
[346013523,1734624645635,-500.0,0.00024044,4]
[346013525,1734624645645,-582.13,0.00024044,4]
[346013527,1734624645658,-500.0,0.00024044,4]
[346013529,1734624645667,-500.0,0.00024044,4]
[346013531,1734624645677,-500.0,0.00024044,4]
[346013533,1734624645689,-500.0,0.00024044,4]
[346013535,1734624645699,-500.0,0.00024045,4]
[346013537,1734624645710,-504.94027853,0.00024045,4]
[346013539,1734624645720,-500.0,0.00024045,4]
[346013541,1734624645730,-505.65422026,0.00024045,4]
[346013543,1734624645740,-500.0,0.00024045,4]
[346013545,1734624645750,-500.0,0.00024045,4]
[346013547,1734624645760,-500.0,0.00024045,4]
[346013549,1734624645769,-500.0,0.00024045,4]
[346013551,1734624645778,-500.0,0.00024045,4]
[346013553,1734624645788,-500.0,0.00024045,4]
[346013555,1734624645798,-448.63053418,0.00024045,4]
[346013557,1734624645808,-500.0,0.00024045,4]
[346013559,1734624645817,-504.43125615,0.00024045,4]
[346013561,1734624645827,-395.36538706,0.00024045,4]
[346013563,1734624645836,-310.87735654,0.00024045,4]
[346013565,1734624645845,-500.0,0.00024045,4]
[346013567,1734624645855,-504.29664359,0.00024045,4]
[346013569,1734624645864,-501.5544955,0.00024045,4]
[346013571,1734624645873,-500.0,0.00024045,4]
[346013573,1734624645883,-500.0,0.00024045,4]
[346013575,1734624645893,-220.61973715,0.00024045,4]
[346013577,1734624645905,-500.0,0.00024045,4]
[346013579,1734624645914,-500.0,0.00024045,4]
[346013581,1734624645923,-500.0,0.00024045,4]
[346013583,1734624645932,-500.0,0.00024045,4]
[346013585,1734624645942,-500.0,0.00024045,4]
[346013587,1734624645951,-206.25497104,0.00024045,4]
[346013589,1734624645960,-500.0,0.00024045,4]
[346013591,1734624645970,-500.0,0.00024045,4]
[346013593,1734624645979,-500.0,0.00024045,4]
[346013595,1734624645988,-500.0,0.00024045,4]
[346013597,1734624645998,-500.0,0.00024045,4]
[346013599,1734624646007,-500.0,0.00024045,4]
[346013601,1734624646017,-399.8815992,0.00024045,4]
[346013603,1734624646026,-500.0,0.00024045,4]
[346013605,1734624646035,-500.0,0.00024045,4]
[346013607,1734624646044,-500.0,0.00024045,4]
[346013609,1734624646054,-500.0,0.00024045,4]
[346013611,1734624646063,-500.0,0.00024045,4]
[346013613,1734624646073,-500.0,0.00024045,4]
[346013615,1734624646082,-500.0,0.00024045,4]
[346013617,1734624646092,-446.06922639,0.00024045,4]
[346013619,1734624646102,-500.0,0.00024045,4]
[346013621,1734624646111,-500.0,0.00024045,4]
[346013623,1734624646121,-500.0,0.00024045,4]
[346013625,1734624646131,-500.8112839,0.00024045,4]
[346013627,1734624646140,-500.0,0.00024045,4]
[346013629,1734624646155,-500.0,0.00024045,4]
[346013631,1734624646164,-500.0,0.00024045,4]
[346013633,1734624646174,-500.0,0.00024045,4]
[346013635,1734624646184,-500.0,0.00024045,4]
[346013637,1734624646195,-500.0,0.00024045,4]
[346013639,1734624646207,-500.0,0.00024045,4]
[346013641,1734624646218,-500.0,0.00024045,4]
[346013643,1734624646229,-500.0,0.00024045,4]
[346013645,1734624646239,-500.0,0.00024045,4]
[346013647,1734624646249,-500.0,0.00024045,4]
[346013649,1734624646259,-501.00987972,0.00024045,4]
[346013651,1734624646269,-500.0,0.00024045,4]
[346013653,1734624646278,-500.0,0.00024045,4]
[346013655,1734624646288,-437.52382309,0.00024045,4]
[346013657,1734624646297,-500.75865506,0.00024045,4]
[346013659,1734624646307,-500.0,0.00024045,4]
[346013661,1734624646317,-500.0,0.00024045,4]
[346013663,1734624646326,-500.0,0.00024045,4]
[346013665,1734624646335,-501.04580697,0.00024045,4]
[346013667,1734624646344,-311.95092107,0.00024045,4]
[346013669,1734624646354,-500.0,0.00024045,4]
[346013671,1734624646363,-500.0,0.00024045,2]
[346013673,1734624646372,-500.0,0.00024045,4]
[346013675,1734624646382,-500.0,0.00024045,4]
[346013677,1734624646392,-500.0,0.00024045,4]
[346013679,1734624646401,-500.0,0.00024045,4]
[346013681,1734624646416,-500.0,0.00024045,4]
[346013683,1734624646425,-500.0,0.00024045,4]
[346013685,1734624646435,-500.0,0.00024045,4]
[346013687,1734624646444,-386.04530447,0.00024045,4]
[346013689,1734624646454,-500.0,0.00024045,4]
[346013691,1734624646463,-500.0,0.00024045,4]
[346013693,1734624646473,-500.0,0.00024045,4]
[346013695,1734624646482,-523.14,0.00024045,4]
[346013697,1734624646491,-500.0,0.00024045,4]
[346013699,1734624646501,-481.38,0.00024045,4]
[346013701,1734624646510,-500.01,0.00024045,4]
[346013703,1734624646519,-500.0,0.00024045,4]
[346013705,1734624646528,-500.0,0.00024045,4]
[346013707,1734624646537,-500.0,0.00024045,4]
[346013709,1734624646546,-500.0,0.00024045,4]
[346013711,1734624646556,-557.04,0.00024045,4]
[346013713,1734624646568,-500.0,0.00024045,4]
[346013714,1734624646581,-500.0,0.00024045,4]
[346013715,1734624646595,-500.0,0.00024045,4]
[346013716,1734624646607,-500.0,0.00024045,4]
[346013717,1734624646619,-500.0,0.00024045,4]
[346013718,1734624646630,-500.0,0.00024045,4]
[346013719,1734624646641,-500.0,0.00024045,4]
[346013721,1734624646655,-500.0,0.00024045,4]
[346013723,1734624646667,-630.54,0.00024045,4]
[346013726,1734624646680,-545.32009357,0.00024045,4]
[346013728,1734624646693,-1629.03,0.00024045,4]
[346013730,1734624646705,-500.0,0.00024045,4]
[346013732,1734624646718,-688.36,0.00024045,4]
[346013735,1734624646730,-500.0,0.00024045,4]
[346013737,1734624646742,-621.32654243,0.00024045,4]
[346013739,1734624646752,-500.0,0.00024045,4]
[346013741,1734624646762,-500.0,0.00024045,4]
[346013744,1734624646775,-500.0,0.00024045,4]
[346013746,1734624646787,-500.0,0.00024045,4]
[346013748,1734624646799,-500.0,0.00024045,4]
[346013751,1734624646811,-500.0,0.00024045,4]
[346013753,1734624646823,-511.09,0.00024045,4]
[346013755,1734624646835,-500.0,0.00024045,4]
[346013758,1734624646848,-500.0,0.00024045,4]
[346013760,1734624646861,-583.53,0.00024045,4]
[346013762,1734624646874,-500.0,0.00024045,4]
[346013764,1734624646886,-500.0,0.00024045,4]
[346013767,1734624646900,-500.0,0.00024045,4]
[346013769,1734624646913,-502.89414124,0.00024045,4]
[346013771,1734624646926,-500.0,0.00024045,4]
[346013774,1734624646937,-629.66,0.00024045,4]
[346013776,1734624646950,-500.0,0.00024045,4]
[346013778,1734624646960,-500.0,0.00024045,4]
[346013780,1734624646974,-500.0,0.00024045,4]
[346013783,1734624646987,-500.0,0.00024045,4]
[346013785,1734624647000,-500.0,0.00024045,4]
[346013787,1734624647012,-500.0,0.00024045,4]
[346013789,1734624647024,-693.65,0.00024045,4]
[346013792,1734624647036,-915.21,0.00024045,4]
[346013794,1734624647046,-269.93937283,0.00024045,4]
[346013796,1734624647057,-500.0,0.00024045,4]
[346013798,1734624647067,-500.0,0.00024045,4]
[346013800,1734624647080,-500.0,0.00024045,4]
[346013803,1734624647101,-643.44,0.00024045,4]
[346013805,1734624647113,-577.58,0.00024045,4]
[346013807,1734624647123,-500.0,0.00024045,4]
[346013809,1734624647134,-724.83,0.00024045,4]
[346013811,1734624647144,-500.0,0.00024045,4]
[346013813,1734624647158,-500.0,0.00024045,4]
[346013815,1734624647171,-500.0,0.00024045,4]
[346013818,1734624647185,-500.0,0.00024045,4]
[346013820,1734624647199,-500.0,0.00024045,4]
[346013822,1734624647210,-500.0,0.00024045,4]
[346013824,1734624647220,-500.0,0.00024045,4]
[346013826,1734624647231,-500.0,0.00024045,4]
[346013829,1734624647246,-500.0,0.00024045,4]
[346013831,1734624647257,-500.0,0.00024045,4]
[346013832,1734624647268,-500.0,0.00024045,4]
[346013834,1734624647280,-500.0,0.00024045,4]
[346013836,1734624647293,-500.0,0.00024045,4]
[346013837,1734624647304,-500.0,0.00024045,4]
[346013839,1734624647315,-500.0,0.00024045,4]
[346013841,1734624647329,-583.09,0.00024045,4]
[346013842,1734624647339,-500.0,0.00024045,4]
[346013844,1734624647351,-500.0,0.00024045,4]
[346013845,1734624647362,-500.0,0.00024045,4]
[346013847,1734624647373,-500.0,0.00024045,4]
[346013848,1734624647383,-500.0,0.00024045,4]
[346013850,1734624647395,-500.0,0.00024045,4]
[346013852,1734624647407,-500.0,0.00024045,4]
[346013853,1734624647417,-500.0,0.00024045,4]
[346013855,1734624647428,-500.0,0.00024045,4]
[346013856,1734624647440,-500.0,0.00024045,4]
[346013858,1734624647451,-500.0,0.00024045,4]
[346013860,1734624647462,-242.39622678,0.00024045,4]
[346013862,1734624647472,-500.0,0.00024045,4]
[346013863,1734624647483,-500.0,0.00024045,4]
[346013865,1734624647494,-500.0,0.00024045,4]
[346013867,1734624647505,-500.0,0.00024045,4]
[346013868,1734624647515,-500.0,0.00024045,4]
[346013870,1734624647526,-126.45954645,0.00024045,4]
[346013876,1734624647604,-373.54045355,0.00024045,4]
[346013878,1734624647615,-500.0,0.00024045,4]
[346013880,1734624647626,-282.38357145,0.00024045,4]
[346013882,1734624647639,-217.61642855,0.00024045,4]
[346013883,1734624647650,-500.0,0.00024045,4]
[346013885,1734624647663,-500.0,0.00024045,4]
[346013887,1734624647675,-219.29465766,0.00024045,4]
[346013889,1734624647690,-280.70534234,0.00024045,4]
[346013891,1734624647702,-500.0,0.00024045,4]
[346013892,1734624647713,-500.0,0.00024045,4]
[346013894,1734624647724,-500.0,0.00024045,4]
[346013896,1734624647735,-1268.41,0.00024045,4]
[346013897,1734624647747,-355.51456905,0.00024045,4]
[346015906,1734625127856,156.86,0.00010137,2]
[346015907,1734625128159,156.86,0.00017599,2]
[346015909,1734625508738,372330.87697776,0.00013,2]
[346015932,1734625831838,-2064.22517346,0.0001998,2]
[346015933,1734625831955,-18029.34037069,0.0001998,2]
[346015934,1734625831964,-672.7,0.00020504,2]
[346015935,1734625831974,-3376.0556043,0.00021,2]
[346015936,1734625831985,-7151.36858699,0.00021,2]
[346015937,1734625831994,-6091.2834138,0.0002188,2]
[346015938,1734625832005,-10905.45665932,0.0002188,2]
[346015939,1734625832017,-4629.29026565,0.0002188,2]
[346015970,1734625837670,-1399.1338458,0.0002188,2]
[346015971,1734625837889,-736.57390145,0.0002188,2]
[346015972,1734625837901,-618.90086075,0.0002188,2]
[346015973,1734625837912,-442.25,0.0002188,2]
[346015974,1734625837924,-528.69395831,0.0002188,2]
[346015975,1734625837945,-5399.50134822,0.0002188,2]
[346015976,1734625837955,-1000.0,0.00022086,2]
[346015977,1734625837964,-1000.0,0.000222,2]
[346015978,1734625837975,-188.13,0.00022377,2]
[346015979,1734625837985,-440.74,0.00022399,2]
[346015980,1734625837994,-1000.0,0.00022407,2]
[346015981,1734625838003,-207.96,0.00022453,2]
[346015982,1734625838016,-213.32766408,0.00022488,4]
[346015983,1734625838026,-1000.0,0.00022539,2]
[346015984,1734625838035,-150.0,0.00022719,2]
[346015985,1734625838045,-157.6,0.00022729,30]
[346015986,1734625838055,-416.76,0.00022743,2]
[346015987,1734625838068,-672.7,0.00022768,2]
[346015988,1734625838080,-277.86,0.00022805,2]
[346015989,1734625838090,-1540.59873059,0.00022867,2]
[346015990,1734625838109,-29.27126941,0.00022867,2]
[346015992,1734625838119,-250.0,0.00022892,2]
[346015994,1734625838129,-757.84,0.000229,2]
[346015996,1734625838139,-7658.22032483,0.000229,2]
[346015997,1734625838150,-326.45,0.000229,2]
[346015998,1734625838163,-4982.08770557,0.000229,2]
[346016000,1734625838173,-153.39,0.00022954,2]
[346016002,1734625838182,-1000.0,0.00022986,2]
[346016003,1734625838191,-250.0,0.00023057,2]
[346016004,1734625838201,-12338.21,0.00023087,2]
[346016005,1734625838211,-816.0,0.00023145,2]
[346016006,1734625838224,-1047.633,0.00023145,2]
[346016007,1734625838234,-3765.0,0.00023145,2]
[346016008,1734625838243,-648.948,0.00023145,2]
[346016009,1734625838252,-250.0,0.0002335,2]
[346016010,1734625838264,-277.86,0.00023648,2]
[346016011,1734625838273,-547.83605524,0.00023671,2]
[346016012,1734625838283,-796.089,0.00023709,4]
[346016013,1734625838292,-1000.0,0.00023709,2]
[346016014,1734625838301,-415.05,0.0002375,2]
[346016015,1734625838311,-500.0,0.00023771,4]
[346016016,1734625838320,-500.0,0.00023771,4]
[346016017,1734625838329,-500.0,0.00023771,4]
[346016018,1734625838339,-500.0,0.00023771,4]
[346016019,1734625838349,-500.0,0.00023771,4]
[346016020,1734625838358,-500.0,0.00023771,4]
[346016021,1734625838367,-500.0,0.00023771,4]
[346016022,1734625838377,-500.0,0.00023771,4]
[346016023,1734625838386,-500.0,0.00023771,4]
[346016024,1734625838395,-500.0,0.00023771,4]
[346016025,1734625838405,-500.0,0.00023771,4]
[346016026,1734625838414,-500.0,0.00023771,4]
[346016027,1734625838423,-500.0,0.00023771,4]
[346016028,1734625838433,-621.41796654,0.00023771,4]
[346016029,1734625838442,-500.0,0.00023771,4]
[346016030,1734625838451,-500.0,0.00023771,4]
[346016031,1734625838460,-500.0,0.00023771,4]
[346016032,1734625838470,-500.0,0.00023771,4]
[346016033,1734625838479,-500.0,0.00023771,4]
[346016034,1734625838488,-500.0,0.00023771,4]
[346016035,1734625838498,-500.0,0.00023771,4]
[346016036,1734625838507,-500.0,0.00023771,4]
[346016037,1734625838520,-500.0,0.00023771,4]
[346016038,1734625838529,-504.43675275,0.00023771,4]
[346016039,1734625838539,-500.0,0.00023771,4]
[346016040,1734625838549,-500.0,0.00023771,4]
[346016041,1734625838559,-500.0,0.00023771,4]
[346016042,1734625838574,-500.0,0.00023771,4]
[346016043,1734625838587,-500.0,0.00023771,4]
[346016044,1734625838597,-500.0,0.00023771,4]
[346016045,1734625838606,-500.0,0.00023771,4]
[346016046,1734625838616,-500.0,0.00023771,4]
[346016047,1734625838625,-500.0,0.00023771,4]
[346016048,1734625838634,-500.0,0.00023771,4]
[346016049,1734625838644,-500.0,0.00023771,4]
[346016050,1734625838653,-500.0,0.00023771,4]
[346016051,1734625838663,-500.0,0.00023771,4]
[346016052,1734625838673,-500.0,0.00023771,4]
[346016053,1734625838682,-500.0,0.00023771,4]
[346016054,1734625838692,-500.0,0.00023771,4]
[346016055,1734625838702,-500.0,0.00023771,4]
[346016056,1734625838712,-654.72,0.00023771,4]
[346016057,1734625838721,-500.0,0.00023771,4]
[346016058,1734625838731,-500.0,0.00023771,4]
[346016059,1734625838740,-500.0,0.00023771,4]
[346016060,1734625838750,-500.0,0.00023771,4]
[346016061,1734625838761,-500.0,0.00023771,4]
[346016062,1734625838770,-34.23366661,0.00023771,4]
[346016063,1734625838783,-210.99141329,0.00023771,4]
[346016064,1734625838792,-289.00858671,0.00023771,4]
[346016065,1734625839685,-210.99141329,0.00023771,4]
[346016066,1734625839695,-872.92858671,0.0002381,2]
[346016067,1734625839708,-1592.11128409,0.0002381,2]
[346016068,1734625839717,-392.30785039,0.00023818,2]
[346016069,1734625839894,-1340.83408945,0.00023847,5]
[346016070,1734625839909,-1340.83408945,0.00023848,5]
[346016071,1734625839919,-1340.83408945,0.00023849,5]
[346016072,1734625839929,-1340.83408945,0.00023869,5]
[346016073,1734625839939,-1340.83408945,0.00023896,5]
[346016074,1734625839948,-1340.83408945,0.00023897,5]
[346016075,1734625839958,-200.0,0.000239,8]
[346016076,1734625839967,-5210.02041557,0.00023944,2]
[346016077,1734625839977,-2500.0,0.00023944,2]
[346016078,1734625839986,-1616.2992,0.00023945,2]
[346016079,1734625839996,-155.05312085,0.00023973,2]
[346016080,1734625840007,-163.04053511,0.00023999,4]
[346016081,1734625840019,-500.0,0.00023999,4]
[346016082,1734625840028,-500.0,0.00023999,4]
[346016083,1734625840037,-500.0,0.00023999,4]
[346016084,1734625840047,-416.05942179,0.00023999,4]
[346016085,1734625840057,-515.75013031,0.00023999,4]
[346016086,1734625840066,-500.0,0.00023999,4]
[346016087,1734625840076,-503.01199885,0.00023999,4]
[346016088,1734625840085,-500.0,0.00023999,4]
[346016089,1734625840094,-500.0,0.00023999,4]
[346016090,1734625840104,-500.0,0.00023999,4]
[346016091,1734625840113,-500.0,0.00023999,4]
[346016093,1734625840123,-18262.36035931,0.00024,7]
[346016096,1734625840144,-412.59015026,0.00023999,4]
[346016098,1734625840154,-35457.63964069,0.00024,7]
[346016100,1734625840163,-167746.19696118,0.00024,5]
[346016104,1734625840186,-3175.84462108,0.00024,5]
[346016106,1734625840197,-425.96,0.00024,5]
[346016108,1734625840213,-1627.4,0.00024,5]
[346016125,1734625842751,-500.0,0.00023999,4]
[346016126,1734625842765,-50749.44936807,0.00024,5]
[346016127,1734625842780,-97671.96168079,0.00024,5]
[346016128,1734625842790,-3472.3548368,0.00024,2]
[346016129,1734625842799,-1848.3534231,0.00024,30]
[346016130,1734625842809,-500.0,0.00024,8]
[346016131,1734625842818,-154.62,0.00024034,2]
[346016132,1734625842828,-205.31655402,0.00024035,2]
[346016133,1734625842837,-500.0,0.00024044,4]
[346016134,1734625842847,-500.0,0.00024044,4]